lending/lending_fUSD_20240510
["ID","MTS","AMOUNT","RATE_DAILY","PERIOD"]
[326791775,1715376646644,-151.0,0.000137,2]
[326791776,1715376646653,-151.0,0.000137,2]
[326791777,1715376646664,-151.0,0.000137,2]
[326791778,1715376646673,-684.332959,0.000137,2]
[326791779,1715376646682,-684.332959,0.000137,2]
[326791780,1715376646692,-151.0,0.000137,2]
[326791781,1715376646702,-543.146429,0.000137,2]
[326791782,1715376646712,-543.146429,0.000137,2]
[326791783,1715376646721,-151.0,0.000137,2]
[326791784,1715376646731,-151.0,0.000137,2]
[326791785,1715376646741,-492.712329,0.000137,2]
[326791786,1715376646750,-492.712329,0.000137,2]
[326791787,1715376646759,-151.0,0.000137,2]
[326791788,1715376646768,-151.0,0.000137,2]
[326791789,1715376646777,-153.980355,0.000137,2]
[326791790,1715376646786,-151.0,0.000137,2]
[326791791,1715376646796,-473.829425,0.000137,2]
[326791792,1715376646805,-151.0,0.000137,2]
[326791793,1715376646814,-473.829425,0.000137,2]
[326791794,1715376646823,-151.0,0.000137,2]
[326791795,1715376646832,-253.552672,0.000137,2]
[326791796,1715376646841,-630.584681,0.000137,2]
[326791797,1715376646850,-630.584681,0.000137,2]
[326791798,1715376646859,-151.0,0.000137,2]
[326791799,1715376646868,-453.195226,0.000137,2]
[326791800,1715376646877,-151.0,0.000137,2]
[326791801,1715376646888,-453.195226,0.000137,2]
[326791802,1715376646897,-151.0,0.000137,2]
[326791803,1715376646906,-151.0,0.000137,2]
[326791804,1715376646915,-151.0,0.000137,2]
[326791805,1715376646924,-151.0,0.000137,2]
[326791806,1715376646934,-1325.719095,0.000137,2]
[326791807,1715376646943,-1325.719095,0.000137,2]
[326791808,1715376646952,-306.150734,0.000137,2]
[326791809,1715376646961,-306.150734,0.000137,2]
[326791810,1715376646970,-10000.0,0.000137,2]
[326791811,1715376646979,-156.448861,0.000137,2]
[326791812,1715376646988,-151.0,0.000137,2]
[326791813,1715376646998,-10000.0,0.000137,2]
[326791814,1715376647007,-156.448861,0.000137,2]
[326791815,1715376647018,-10000.0,0.000137,2]
[326791816,1715376647028,-151.0,0.000137,2]
[326791817,1715376647037,-184.123382,0.000137,2]
[326791818,1715376647046,-184.123382,0.000137,2]
[326791819,1715376647055,-794.482571,0.000137,2]
[326791820,1715376647064,-794.482571,0.000137,2]
[326791821,1715376647074,-152.289206,0.000137,2]
[326791822,1715376647083,-151.0,0.000137,2]
[326791823,1715376647092,-152.289206,0.000137,2]
[326791824,1715376647103,-151.0,0.000137,2]
[326791825,1715376647113,-151.0,0.000137,2]
[326791826,1715376647122,-151.0,0.000137,2]
[326791827,1715376647131,-230.733187,0.000137,2]
[326791828,1715376647140,-151.0,0.000137,2]
[326791829,1715376647150,-230.733187,0.000137,2]
[326791830,1715376647160,-151.0,0.000137,2]
[326791831,1715376647169,-151.0,0.000137,2]
[326791832,1715376647178,-37815.0,0.000137,2]
[326791833,1715376647188,-5761.988,0.000137,2]
[326791834,1715376647197,-151.0,0.000137,2]
[326791835,1715376647206,-2157.0,0.000137,2]
[326791836,1715376647215,-289.234,0.000137,2]
[326791837,1715376647224,-5909.0,0.000137,2]
[326791838,1715376647233,-151.0,0.000137,2]
[326791839,1715376647242,-1402.897,0.000137,2]
[326791840,1715376647251,-2295.0,0.000137,2]
[326791841,1715376647260,-151.0,0.000137,2]
[326791842,1715376647270,-225.05,0.00013747,2]
[326791843,1715376647279,-1038.22024424,0.00014,2]
[326791844,1715376647288,-302.40394514,0.00014008,2]
[326791845,1715376647297,-169.52,0.00014012,2]
[326791846,1715376647307,-1992.33,0.00014158,2]
[326791847,1715376647316,-35606.72177172,0.00014209,2]
[326791848,1715376647325,-5983.96183383,0.00014245,2]
[326791849,1715376647334,-353.0,0.000143,2]
[326791850,1715376647343,-1000.0,0.000143,2]
[326791851,1715376647352,-1000.0,0.00014303,2]
[326791852,1715376647361,-197.58,0.00014331,2]
[326791853,1715376647370,-718.470139,0.00014521,2]
[326791854,1715376647379,-153.02,0.00014563,2]
[326791855,1715376647388,-936.22,0.00014568,2]
[326791856,1715376647397,-892.0,0.000147,2]
[326791857,1715376647406,-261.4,0.000147,2]
[326791858,1715376647415,-712.20676349,0.00014899,2]
[326791859,1715376647424,-209.50102838,0.000149,2]
[326791860,1715376647433,-209.50102837,0.000149,2]
[326791861,1715376647443,-281.6659757,0.00015,2]
[326791862,1715376647454,-528.0483166,0.00015,2]
[326791863,1715376647463,-214.22165342,0.00015,2]
[326791864,1715376647473,-485.0,0.00015,2]
[326791865,1715376647482,-1978.61138425,0.00015,10]
[326791866,1715376647491,-3435.0742689,0.00015,2]
[326791867,1715376647500,-344884.0,0.00015,2]
[326791868,1715376647511,-200.0,0.00015,2]
[326791869,1715376647522,-169.34603397,0.00015,2]
[326791870,1715376647532,-155.0,0.00015,2]
[326791871,1715376647541,-256.011028,0.00015,2]
[326791872,1715376647550,-256.011028,0.00015,2]
[326791873,1715376647561,-151.0,0.00015,2]
[326791874,1715376647571,-151.0,0.00015,2]
[326791875,1715376647580,-151.0,0.00015,2]
[326791876,1715376647589,-151.0,0.00015,2]
[326791877,1715376647598,-151.0,0.00015,2]
[326791878,1715376647607,-151.0,0.00015,2]
[326791879,1715376647616,-151.0,0.00015,2]
[326791880,1715376647629,-151.0,0.00015,2]
[326791881,1715376647640,-151.0,0.00015,2]
[326791882,1715376647648,-151.0,0.00015,2]
[326791883,1715376647658,-151.0,0.00015,2]
[326791884,1715376647669,-151.0,0.00015,2]
[326791886,1715376647678,-151.0,0.00015,2]
[326791888,1715376647687,-151.0,0.00015,2]
[326791890,1715376647696,-406.467796,0.00015,2]
[326791891,1715376647707,-406.467796,0.00015,2]
[326791892,1715376647717,-151.0,0.00015,2]
[326791893,1715376647726,-151.0,0.00015,2]
[326791894,1715376647735,-151.0,0.00015,2]
[326791895,1715376647744,-151.0,0.00015,2]
[326791896,1715376647753,-151.0,0.00015,2]
[326791897,1715376647762,-151.0,0.00015,2]
[326791898,1715376647771,-151.0,0.00015,2]
[326791899,1715376647781,-151.0,0.00015,2]
[326791900,1715376647790,-151.0,0.00015,2]
[326791901,1715376647799,-155.938872,0.00015,2]
[326791902,1715376647808,-151.548932,0.00015,2]
[326791903,1715376647817,-155.938872,0.00015,2]
[326791904,1715376647826,-188.020188,0.00015,2]
[326791905,1715376647836,-188.020188,0.00015,2]
[326791906,1715376647845,-151.0,0.00015,2]
[326791907,1715376647854,-151.0,0.00015,2]
[326791908,1715376647863,-264.527438,0.00015,2]
[326791909,1715376647872,-151.0,0.00015,2]
[326791910,1715376647881,-151.0,0.00015,2]
[326791911,1715376647890,-189.282474,0.00015,2]
[326791912,1715376647900,-151.937742,0.00015,2]
[326791913,1715376647909,-189.282474,0.00015,2]
[326791914,1715376647918,-476.502543,0.00015,2]
[326791915,1715376647927,-476.502543,0.00015,2]
[326791916,1715376647937,-711.802091,0.00015,2]
[326791917,1715376647946,-711.802091,0.00015,2]
[326791918,1715376647954,-222.872073,0.00015,2]
[326791919,1715376647963,-222.872073,0.00015,2]
[326791920,1715376647972,-151.0,0.00015,2]
[326791921,1715376647981,-151.0,0.00015,2]
[326791922,1715376647990,-151.0,0.00015,2]
[326791923,1715376647999,-151.0,0.00015,2]
[326791924,1715376648008,-151.0,0.00015,2]
[326791925,1715376648017,-151.0,0.00015,2]
[326791926,1715376648026,-151.0,0.00015,2]
[326791927,1715376648035,-151.979642,0.00015,2]
[326791928,1715376648044,-151.0,0.00015,2]
[326791929,1715376648053,-151.0,0.00015,2]
[326791930,1715376648061,-151.0,0.00015,2]
[326791931,1715376648070,-151.0,0.00015,2]
[326791932,1715376648079,-151.0,0.00015,2]
[326791933,1715376648088,-151.0,0.00015,2]
[326791934,1715376648097,-402.387232,0.00015,2]
[326791935,1715376648106,-402.387232,0.00015,2]
[326791936,1715376648115,-151.0,0.00015,2]
[326791937,1715376648124,-151.0,0.00015,2]
[326791938,1715376648133,-394.431191,0.00015,2]
[326791939,1715376648142,-394.431191,0.00015,2]
[326791940,1715376648152,-1118.463112,0.00015,2]
[326791941,1715376648161,-426.614602,0.00015,2]
[326791942,1715376648170,-1118.463112,0.00015,2]
[326791943,1715376648179,-426.614602,0.00015,2]
[326791944,1715376648188,-151.0,0.00015,2]
[326791945,1715376648198,-151.0,0.00015,2]
[326791946,1715376648207,-151.0,0.00015,2]
[326791947,1715376648218,-151.0,0.00015,2]
[326791948,1715376648228,-151.0,0.00015,2]
[326791949,1715376648239,-151.0,0.00015,2]
[326791950,1715376648249,-684.332959,0.00015,2]
[326791951,1715376648260,-684.332959,0.00015,2]
[326791952,1715376648269,-151.377025,0.00015,2]
[326791953,1715376648279,-543.146429,0.00015,2]
[326791954,1715376648288,-543.146429,0.00015,2]
[326791955,1715376648298,-151.0,0.00015,2]
[326791956,1715376648307,-151.0,0.00015,2]
[326791957,1715376648315,-492.712329,0.00015,2]
[326791958,1715376648325,-492.712329,0.00015,2]
[326791959,1715376648334,-151.0,0.00015,2]
[326791960,1715376648343,-151.0,0.00015,2]
[326791961,1715376648352,-151.0,0.00015,2]
[326791962,1715376648361,-473.829425,0.00015,2]
[326791963,1715376648370,-151.0,0.00015,2]
[326791964,1715376648379,-473.829425,0.00015,2]
[326791965,1715376648389,-151.0,0.00015,2]
[326791966,1715376648399,-630.584681,0.00015,2]
[326791967,1715376648408,-630.584681,0.00015,2]
[326791968,1715376648417,-151.96893,0.00015,2]
[326791969,1715376648648,-453.195226,0.00015,2]
[326791970,1715376648658,-151.0,0.00015,2]
[326791971,1715376648667,-453.195226,0.00015,2]
[326791972,1715376648676,-151.0,0.00015,2]
[326791973,1715376648685,-151.0,0.00015,2]
[326791974,1715376648694,-151.0,0.00015,2]
[326791975,1715376648706,-151.0,0.00015,2]
[326791976,1715376648715,-1325.719095,0.00015,2]
[326791977,1715376648724,-1325.719095,0.00015,2]
[326791978,1715376648734,-306.150734,0.00015,2]
[326791979,1715376648744,-306.150734,0.00015,2]
[326791980,1715376648753,-10000.0,0.00015,2]
[326791981,1715376648762,-156.448861,0.00015,2]
[326791982,1715376648772,-151.0,0.00015,2]
[326791983,1715376648781,-10000.0,0.00015,2]
[326791984,1715376648790,-156.448861,0.00015,2]
[326791985,1715376648800,-1013.933699,0.00015,2]
[326791986,1715376648809,-151.0,0.00015,2]
[326791987,1715376648818,-184.123382,0.00015,2]
[326791988,1715376648827,-184.123382,0.00015,2]
[326791989,1715376648836,-794.482571,0.00015,2]
[326791990,1715376648845,-794.482571,0.00015,2]
[326791991,1715376648855,-152.289206,0.00015,2]
[326791992,1715376648864,-151.0,0.00015,2]
[326791993,1715376648873,-152.289206,0.00015,2]
[326791994,1715376648883,-151.0,0.00015,2]
[326791995,1715376648892,-151.0,0.00015,2]
[326791996,1715376648901,-151.0,0.00015,2]
[326791997,1715376648910,-230.733187,0.00015,2]
[326791998,1715376648919,-230.733187,0.00015,2]
[326791999,1715376648928,-151.0,0.00015,2]
[326792000,1715376648937,-151.0,0.00015,2]
[326792001,1715376648947,-151.0,0.00015,2]
[326792002,1715376648956,-151.0,0.00015,2]
[326792003,1715376648967,-161.630309,0.00015,2]
[326792004,1715376648979,-150.0,0.0001514,2]
[326792005,1715376648989,-153.819,0.0001514,2]
[326792006,1715376648999,-152.0,0.0001518,2]
[326792007,1715376649008,-10000.0,0.00015182,2]
[326792008,1715376649018,-302.40394514,0.00015216,2]
[326792009,1715376649027,-17705.0,0.000153,3]
[326792010,1715376649037,-718.470139,0.00015342,2]
[326792011,1715376649046,-169.52,0.00015356,2]
[326792012,1715376649056,-155.75239288,0.000155,2]
[326792013,1715376649065,-17705.0,0.000155,5]
[326792014,1715376649074,-35606.72177172,0.00015518,2]
[326792015,1715376649084,-260.39182396,0.0001565,2]
[326792016,1715376649093,-5983.96183383,0.00015689,2]
[326792017,1715376649103,-1000.0,0.00015733,2]
[326792018,1715376649112,-197.58,0.00015765,2]
[326792019,1715376649121,-167.41,0.00015831,2]
[326792020,1715376649131,-167.0,0.00015831,2]
[326792021,1715376649140,-565.86627808,0.00016,2]
[326792022,1715376649151,-5094.0,0.00016,2]
[326792023,1715376649161,-153.02,0.00016019,2]
[326792024,1715376649170,-9999.99,0.00016116,2]
[326792025,1715376649180,-718.470139,0.00016164,2]
[326792026,1715376649190,-767.0,0.000162,2]
[326792027,1715376649200,-302.15,0.00016212,2]
[326792028,1715376649210,-159.742,0.00016223,2]
[326792029,1715376649219,-159.742,0.00016296,2]
[326792030,1715376649229,-159.742,0.0001637,2]
[326792031,1715376649239,-302.40394514,0.00016424,2]
[326792032,1715376649248,-9252.07,0.00016438,2]
[326792033,1715376649258,-159.742,0.00016445,2]
[326792034,1715376649268,-1218.61341804,0.000165,2]
[326792035,1715376649277,-159.742,0.0001652,2]
[326792036,1715376649287,-174.44799409,0.00016567,2]
[326792037,1715376649296,-159.742,0.00016596,2]
[326792038,1715376649305,-1226.0,0.000167,2]
[326792039,1715376649315,-543.0,0.000167,2]
[326792040,1715376649325,-421.0,0.000167,2]
[326792041,1715376649335,-611.0,0.000167,2]
[326792042,1715376649344,-438.0,0.000167,2]
[326792043,1715376649353,-164.0,0.000167,2]
[326792044,1715376649363,-809.0,0.000167,2]
[326792045,1715376649372,-150.0,0.000167,2]
[326792046,1715376649382,-1479.0,0.000167,2]
[326792047,1715376649391,-2412.0,0.000167,2]
[326792048,1715376649400,-1135.129,0.000167,2]
[326792049,1715376649409,-1645.0,0.000167,2]
[326792050,1715376649418,-444.0,0.000167,2]
[326792051,1715376649428,-215.0,0.000167,2]
[326792052,1715376649437,-3155.0,0.000167,2]
[326792053,1715376649447,-37815.0,0.000167,2]
[326792054,1715376649456,-5747.0,0.000167,2]
[326792055,1715376649466,-904.496,0.000167,2]
[326792056,1715376649475,-288.0,0.000167,2]
[326792057,1715376649485,-5909.0,0.000167,2]
[326792058,1715376649494,-35606.72177172,0.00016826,2]
[326792059,1715376649504,-1992.33,0.00016897,2]
[326792060,1715376649514,-158.9131945,0.000169,2]
[326792061,1715376649524,-718.470139,0.00016986,2]
[326792062,1715376649534,-419.74,0.00017034,2]
[326792063,1715376649543,-5983.96183383,0.00017134,2]
[326792064,1715376649553,-1000.0,0.00017163,2]
[326792065,1715376649562,-197.58,0.00017198,2]
[326792066,1715376649572,-188.4,0.0001735,2]
[326792067,1715376649582,-153.02,0.00017476,2]
[326792068,1715376649592,-301.28,0.00017534,2]
[326792069,1715376649602,-967.06915176,0.00017542,2]
[326792070,1715376649611,-151.0,0.00017614,2]
[326792071,1715376649621,-184.206044,0.00017614,2]
[326792072,1715376649635,-188.020188,0.00017614,2]
[326792073,1715376649645,-188.020188,0.00017614,2]
[326792074,1715376649654,-151.0,0.00017614,2]
[326792075,1715376649665,-151.0,0.00017614,2]
[326792076,1715376649674,-151.0,0.00017614,2]
[326792077,1715376649683,-151.0,0.00017614,2]
[326792078,1715376649693,-189.282474,0.00017614,2]
[326792079,1715376649702,-189.282474,0.00017614,2]
[326792080,1715376649714,-476.502543,0.00017614,2]
[326792081,1715376649724,-476.502543,0.00017614,2]
[326792082,1715376649733,-711.802091,0.00017614,2]
[326792083,1715376649742,-711.802091,0.00017614,2]
[326792084,1715376649751,-222.872073,0.00017614,2]
[326792085,1715376649761,-222.872073,0.00017614,2]
[326792086,1715376649770,-151.395788,0.00017614,2]
[326792087,1715376649780,-151.0,0.00017614,2]
[326792088,1715376649790,-151.0,0.00017614,2]
[326792089,1715376649799,-151.0,0.00017614,2]
[326792090,1715376649809,-151.0,0.00017614,2]
[326792091,1715376649818,-151.0,0.00017614,2]
[326792092,1715376649828,-151.0,0.00017614,2]
[326792093,1715376649837,-182.018106,0.00017614,2]
[326792094,1715376649846,-151.0,0.00017614,2]
[326792095,1715376649856,-151.0,0.00017614,2]
[326792096,1715376649865,-151.0,0.00017614,2]
[326792097,1715376649874,-204.136703,0.00017614,2]
[326792098,1715376649885,-151.0,0.00017614,2]
[326792099,1715376649894,-402.387232,0.00017614,2]
[326792100,1715376649904,-402.387232,0.00017614,2]
[326792101,1715376649913,-151.0,0.00017614,2]
[326792102,1715376649923,-394.431191,0.00017614,2]
[326792103,1715376649932,-394.431191,0.00017614,2]
[326792104,1715376649942,-426.614602,0.00017614,2]
[326792105,1715376649951,-426.614602,0.00017614,2]
[326792106,1715376649960,-151.0,0.00017614,2]
[326792107,1715376649969,-151.0,0.00017614,2]
[326792108,1715376649979,-684.332959,0.00017614,2]
[326792109,1715376649988,-684.332959,0.00017614,2]
[326792110,1715376649998,-543.146429,0.00017614,2]
[326792111,1715376650007,-543.146429,0.00017614,2]
[326792112,1715376650016,-151.0,0.00017614,2]
[326792113,1715376650025,-154.3536,0.00017614,2]
[326792114,1715376650035,-492.712329,0.00017614,2]
[326792115,1715376650044,-492.712329,0.00017614,2]
[326792116,1715376650054,-153.204924,0.00017614,2]
[326792117,1715376650063,-151.0,0.00017614,2]
[326792118,1715376650072,-473.829425,0.00017614,2]
[326792119,1715376650081,-151.0,0.00017614,2]
[326792120,1715376650091,-473.829425,0.00017614,2]
[326792121,1715376650100,-151.0,0.00017614,2]
[326792122,1715376650110,-630.584681,0.00017614,2]
[326792123,1715376650119,-630.584681,0.00017614,2]
[326792124,1715376650129,-453.195226,0.00017614,2]
[326792125,1715376650139,-151.0,0.00017614,2]
[326792126,1715376650149,-453.195226,0.00017614,2]
[326792127,1715376650160,-151.0,0.00017614,2]
[326792128,1715376650170,-151.819077,0.00017614,2]
[326792129,1715376650179,-151.0,0.00017614,2]
[326792130,1715376650190,-151.0,0.00017614,2]
[326792131,1715376650199,-1325.719095,0.00017614,2]
[326792132,1715376650209,-1325.719095,0.00017614,2]
[326792133,1715376650218,-306.150734,0.00017614,2]
[326792134,1715376650227,-306.150734,0.00017614,2]
[326792135,1715376650236,-10000.0,0.00017614,2]
[326792136,1715376650245,-156.448861,0.00017614,2]
[326792137,1715376650254,-151.0,0.00017614,2]
[326792138,1715376650263,-10000.0,0.00017614,2]
[326792139,1715376650272,-156.448861,0.00017614,2]
[326792140,1715376650281,-151.0,0.00017614,2]
[326792141,1715376650290,-184.123382,0.00017614,2]
[326792142,1715376650299,-184.123382,0.00017614,2]
[326792143,1715376650308,-794.482571,0.00017614,2]
[326792144,1715376650317,-794.482571,0.00017614,2]
[326792145,1715376650326,-152.289206,0.00017614,2]
[326792146,1715376650335,-151.0,0.00017614,2]
[326792147,1715376650344,-152.289206,0.00017614,2]
[326792148,1715376650353,-151.0,0.00017614,2]
[326792149,1715376650362,-151.0,0.00017614,2]
[326792150,1715376650371,-151.0,0.00017614,2]
[326792151,1715376650380,-230.733187,0.00017614,2]
[326792152,1715376650390,-230.733187,0.00017614,2]
[326792153,1715376650399,-151.0,0.00017614,2]
[326792154,1715376650408,-159.492661,0.00017614,2]
[326792155,1715376650418,-151.0,0.00017614,2]
[326792156,1715376650429,-302.40394514,0.00017632,2]
[326792157,1715376650438,-718.470139,0.00017808,2]
[326792158,1715376650448,-256.011028,0.0001788,2]
[326792159,1715376650457,-256.011028,0.0001788,2]
[326792160,1715376650468,-151.0,0.0001788,2]
[326792161,1715376650477,-151.0,0.0001788,2]
[326792162,1715376650486,-151.0,0.0001788,2]
[326792163,1715376650495,-151.0,0.0001788,2]
[326792164,1715376650504,-200.377479,0.0001788,2]
[326792165,1715376650513,-151.0,0.0001788,2]
[326792166,1715376650524,-151.0,0.0001788,2]
[326792167,1715376650533,-151.0,0.0001788,2]
[326792168,1715376650542,-151.0,0.0001788,2]
[326792169,1715376650551,-151.0,0.0001788,2]
[326792170,1715376650560,-151.0,0.0001788,2]
[326792171,1715376650569,-151.0,0.0001788,2]
[326792172,1715376650578,-151.0,0.0001788,2]
[326792173,1715376650588,-151.0,0.0001788,2]
[326792174,1715376650599,-406.467796,0.0001788,2]
[326792175,1715376650607,-406.467796,0.0001788,2]
[326792176,1715376650618,-151.0,0.0001788,2]
[326792177,1715376650630,-151.0,0.0001788,2]
[326792178,1715376650640,-1118.463112,0.0001788,2]
[326792179,1715376650649,-1118.463112,0.0001788,2]
[326792180,1715376650659,-151.0,0.0001788,2]
[326792181,1715376650670,-151.0,0.0001788,2]
[326792182,1715376650681,-152.068366,0.0001788,2]
[326792183,1715376650690,-151.0,0.0001788,2]
[326792184,1715376650700,-6208.80507186,0.0001788,2]
[326792185,1715376650711,-6208.80507182,0.0001788,2]
[326792186,1715376650720,-6208.80507182,0.0001788,2]
[326792187,1715376650729,-6208.80507182,0.0001788,2]
[326792188,1715376650739,-189.289376,0.0001788,2]
[326792189,1715376650748,-1152.90590478,0.00018,2]
[326792190,1715376650757,-155.0,0.00018,2]
[326792191,1715376650767,-6208.80507182,0.00018133,2]
[326792192,1715376650777,-35606.72177172,0.00018135,2]
[326792193,1715376650787,-188.4,0.00018337,3]
[326792194,1715376650797,-2339.87160254,0.00018397,2]
[326792195,1715376650806,-669.78586336,0.00018397,2]
[326792196,1715376650815,-165.77056612,0.00018397,2]
[326792197,1715376650825,-1667.86768044,0.000184,2]
[326792198,1715376650834,-260.39182396,0.000184,2]
[326792199,1715376650844,-500.0,0.000185,2]
[326792200,1715376650853,-5983.96183383,0.00018579,2]
[326792201,1715376650871,-170.03,0.00018604,2]
[326792202,1715376650886,-178.0,0.00018604,2]
[326792203,1715376650902,-718.470139,0.0001863,2]
[326792204,1715376650913,-300.64,0.00018678,2]
[326792205,1715376650927,-302.40394514,0.0001884,2]
[326792206,1715376650941,-300.0,0.00018952,2]
[326792207,1715376650955,-5000.0,0.00019,2]
[326792208,1715376650969,-6400.0,0.00019,2]
[326792209,1715376650985,-9764.0039622,0.00019,5]
[326792210,1715376651000,-1033.41507273,0.00019,2]
[326792211,1715376651013,-500.0,0.00019,2]
[326792212,1715376651026,-500.0,0.00019,2]
[326792213,1715376651041,-500.0,0.00019,2]
[326792214,1715376651054,-500.0,0.00019,2]
[326792215,1715376651065,-500.0,0.00019,2]
[326792216,1715376651077,-500.0,0.00019,2]
[326792217,1715376651090,-500.0,0.00019,2]
[326792218,1715376651104,-500.0,0.00019,2]
[326792219,1715376651118,-500.0,0.00019,2]
[326792220,1715376651134,-500.0,0.00019,2]
[326792221,1715376651149,-500.0,0.00019,2]
[326792222,1715376651160,-500.0,0.00019,2]
[326792223,1715376651171,-500.0,0.00019,2]
[326792224,1715376651184,-500.0,0.00019,2]
[326792225,1715376651197,-500.0,0.00019,2]
[326792226,1715376651211,-500.0,0.00019,2]
[326792227,1715376651222,-500.0,0.00019,2]
[326792228,1715376651234,-500.0,0.00019,2]
[326792229,1715376651249,-500.0,0.00019,2]
[326792230,1715376651260,-500.0,0.00019,2]
[326792231,1715376651271,-500.0,0.00019,2]
[326792232,1715376651283,-500.0,0.00019,2]
[326792233,1715376651295,-500.0,0.00019,2]
[326792234,1715376651308,-500.0,0.00019,2]
[326792235,1715376651320,-500.0,0.00019,2]
[326792236,1715376651332,-500.0,0.00019,2]
[326792237,1715376651344,-500.0,0.00019,2]
[326792238,1715376651356,-500.0,0.00019,2]
[326792239,1715376651368,-500.0,0.00019,2]
[326792240,1715376651380,-500.0,0.00019,2]
[326792241,1715376651393,-500.0,0.00019,2]
[326792242,1715376651405,-500.0,0.00019,2]
[326792243,1715376651417,-340.68,0.00019,2]
[326792244,1715376651430,-19571.71795071,0.00019,2]
[326792245,1715376651442,-151.0,0.00019,2]
[326792246,1715376651454,-151.0,0.00019,2]
[326792247,1715376651466,-151.0,0.00019,2]
[326792248,1715376651477,-151.0,0.00019,2]
[326792249,1715376651489,-151.0,0.00019,2]
[326792250,1715376651501,-250.17556,0.00019,2]
[326792251,1715376651512,-155.938872,0.00019,2]
[326792252,1715376651530,-155.938872,0.00019,2]
[326792253,1715376651542,-155.0,0.00019,2]
[326792254,1715376651554,-150.0,0.00019107,2]
[326792255,1715376651566,-163.24,0.00019107,2]
[326792256,1715376651578,-150.0,0.00019107,2]
[326792257,1715376651589,-167.39,0.00019163,2]
[326792258,1715376651601,-200.0,0.00019176,2]
[326792259,1715376651613,-500.0,0.00019178,2]
[326792260,1715376651627,-500.0,0.00019178,2]
[326792261,1715376651640,-455.05405421,0.00019178,2]
[326792262,1715376651651,-500.0,0.00019178,2]
[326792263,1715376651663,-500.0,0.00019178,2]
[326792264,1715376651676,-518.36825839,0.00019178,2]
[326792265,1715376651688,-500.0,0.00019178,2]
[326792266,1715376651699,-500.0,0.00019178,2]
[326792267,1715376651715,-285.14158324,0.00019178,2]
[326792268,1715376651726,-443.565599,0.00019178,2]
[326792269,1715376651738,-163.25,0.00019178,2]
[326792270,1715376651750,-150.01,0.00019178,2]
[326792271,1715376651762,-170.07,0.00019178,2]
[326792272,1715376651773,-377.73,0.00019178,2]
[326792273,1715376651785,-5290.87,0.00019178,2]
[326792274,1715376651797,-160.93,0.00019178,2]
[326792275,1715376651809,-343.946088,0.00019178,2]
[326792276,1715376651821,-343.946088,0.00019178,2]
[326792277,1715376651833,-343.946088,0.00019178,2]